fUSD/lending_fUSD_20240301
["ID","MTS","AMOUNT","RATE_DAILY","PERIOD"]
[316027702,1709328646049,-500.0,0.00021917,2]
[316027703,1709328646058,-757.99,0.00021917,2]
[316027704,1709328646068,-819.23,0.00021917,2]
[316027705,1709328646078,-500.0,0.00021917,2]
[316027706,1709328646088,-568.79,0.00021917,2]
[316027707,1709328646097,-500.0,0.00021917,2]
[316027708,1709328646107,-507.75,0.00021917,2]
[316027709,1709328646118,-1291.29,0.00021917,2]
[316027710,1709328646128,-500.0,0.00021917,2]
[316027711,1709328646138,-661.02,0.00021917,2]
[316027712,1709328646148,-500.0,0.00021917,2]
[316027713,1709328646157,-592.43,0.00021917,2]
[316027714,1709328646167,-500.0,0.00021917,2]
[316027715,1709328646176,-500.0,0.00021917,2]
[316027716,1709328646186,-1204.1,0.00021917,2]
[316027717,1709328646195,-500.0,0.00021917,2]
[316027718,1709328646204,-500.0,0.00021917,2]
[316027719,1709328646214,-500.0,0.00021917,2]
[316027720,1709328646223,-1481.86,0.00021917,2]
[316027721,1709328646233,-500.0,0.00021917,2]
[316027722,1709328646242,-500.0,0.00021917,2]
[316027723,1709328646252,-783.92,0.00021917,2]
[316027724,1709328646262,-500.0,0.00021917,2]
[316027725,1709328646271,-500.0,0.00021917,2]
[316027726,1709328646280,-2213.26,0.00021917,2]
[316027727,1709328646290,-782.94,0.00021917,2]
[316027728,1709328646298,-500.0,0.00021917,2]
[316027729,1709328646308,-500.0,0.00021917,2]
[316027730,1709328646317,-500.0,0.00021917,2]
[316027731,1709328646326,-1312.48,0.00021917,2]
[316027732,1709328646335,-500.0,0.00021917,2]
[316027733,1709328646345,-500.0,0.00021917,2]
[316027734,1709328646354,-836.34,0.00021917,2]
[316027735,1709328646363,-1408.63,0.00021917,2]
[316027736,1709328646375,-500.0,0.00021917,2]
[316027737,1709328646385,-552.95,0.00021917,2]
[316027738,1709328646394,-877.39,0.00021917,2]
[316027739,1709328646403,-726.46,0.00021917,2]
[316027740,1709328646413,-500.0,0.00021917,2]
[316027741,1709328646422,-500.0,0.00021917,2]
[316027742,1709328646432,-1437.05,0.00021917,2]
[316027743,1709328646440,-2294.72,0.00021917,2]
[316027744,1709328646450,-500.0,0.00021917,2]
[316027745,1709328646459,-906.87,0.00021917,2]
[316027746,1709328646469,-500.0,0.00021917,2]
[316027747,1709328646478,-500.0,0.00021917,2]
[316027748,1709328646489,-685.72,0.00021917,2]
[316027749,1709328646498,-500.0,0.00021917,2]
[316027750,1709328646507,-500.0,0.00021917,2]
[316027751,1709328646517,-500.0,0.00021917,2]
[316027752,1709328646526,-786.95,0.00021917,2]
[316027753,1709328646535,-500.0,0.00021917,2]
[316027754,1709328646545,-500.0,0.00021917,2]
[316027755,1709328646555,-500.0,0.00021917,2]
[316027756,1709328646564,-572.96,0.00021917,2]
[316027757,1709328646574,-500.0,0.00021917,2]
[316027758,1709328646583,-571.0,0.00021917,2]
[316027759,1709328646593,-1703.63,0.00021917,2]
[316027760,1709328646602,-2645.44,0.00021917,2]
[316027761,1709328646612,-923.63,0.00021917,2]
[316027762,1709328646623,-500.0,0.00021917,2]
[316027763,1709328646632,-874.1,0.00021917,2]
[316027764,1709328646641,-500.0,0.00021917,2]
[316027765,1709328646650,-500.0,0.00021917,2]
[316027766,1709328646659,-2609.99,0.00021917,2]
[316027767,1709328646669,-500.0,0.00021917,2]
[316027768,1709328646678,-500.0,0.00021917,2]
[316027769,1709328646687,-4819.61,0.00021917,2]
[316027770,1709328646696,-578.60913941,0.00021917,2]
[316027771,1709328646706,-1024.04,0.00021917,2]
[316027772,1709328646715,-500.0,0.00021917,2]
[316027773,1709328646724,-567.41,0.00021917,2]
[316027774,1709328646733,-1364.46,0.00021917,2]
[316027775,1709328646743,-500.0,0.00021917,2]
[316027776,1709328646752,-1947.64,0.00021917,2]
[316027777,1709328646762,-500.0,0.00021917,2]
[316027778,1709328646771,-961.79,0.00021917,2]
[316027779,1709328646781,-1664.45,0.00021917,2]
[316027780,1709328646790,-500.0,0.00021917,2]
[316027781,1709328646800,-500.0,0.00021917,2]
[316027782,1709328646809,-500.0,0.00021917,2]
[316027783,1709328646819,-500.0,0.00021917,2]
[316027784,1709328646829,-500.0,0.00021917,2]
[316027785,1709328646838,-500.0,0.00021917,2]
[316027786,1709328646848,-2683.61,0.00021917,2]
[316027787,1709328646857,-500.0,0.00021917,2]
[316027788,1709328646867,-591.44,0.00021917,2]
[316027789,1709328646877,-500.0,0.00021917,2]
[316027790,1709328646886,-5623.01,0.00021917,2]
[316027791,1709328646896,-500.0,0.00021917,2]
[316027792,1709328646905,-500.0,0.00021917,2]
[316027793,1709328646915,-3786.07,0.00021917,2]
[316027794,1709328646925,-500.0,0.00021917,2]
[316027795,1709328646934,-1383.65,0.00021917,2]
[316027796,1709328646944,-343.01014515,0.00021917,2]
[316027797,1709328646953,-500.0,0.00021917,2]
[316027798,1709328646963,-500.0,0.00021917,2]
[316027799,1709328646972,-500.0,0.00021917,2]
[316027800,1709328646982,-9217.98,0.00021917,2]
[316027801,1709328646991,-500.0,0.00021917,2]
[316027802,1709328647000,-561.4,0.00021917,2]
[316027803,1709328647009,-11675.57,0.00021917,2]
[316027804,1709328647019,-500.0,0.00021917,2]
[316027805,1709328647029,-500.0,0.00021917,2]
[316027806,1709328647039,-500.0,0.00021917,2]
[316027807,1709328647050,-1723.27,0.00021917,2]
[316027808,1709328647059,-500.0,0.00021917,2]
[316027809,1709328647069,-8684.27,0.00021917,2]
[316027810,1709328647079,-516.4546968,0.00021917,2]
[316027811,1709328647089,-500.0,0.00021917,2]
[316027812,1709328647098,-702.09,0.00021917,2]
[316027813,1709328647107,-448.2,0.00021917,2]
[316027814,1709328647119,-500.0,0.00021917,2]
[316027815,1709328647129,-3567.05,0.00021917,2]
[316027816,1709328647139,-3405.56,0.00021917,2]
[316027817,1709328647148,-2872.71,0.00021917,2]
[316027818,1709328647158,-4829.55,0.00021917,2]
[316027819,1709328647168,-500.0,0.00021917,2]
[316027820,1709328647178,-500.0,0.00021917,2]
[316027821,1709328647187,-7070.51,0.00021917,2]
[316027822,1709328647196,-500.0,0.00021917,2]
[316027823,1709328647206,-26810.74,0.00021917,2]
[316027824,1709328647216,-2983.15,0.00021917,2]
[316027825,1709328647225,-500.0,0.00021917,2]
[316027826,1709328647234,-500.0,0.00021917,2]
[316027827,1709328647243,-500.0,0.00021917,2]
[316027828,1709328647253,-500.0,0.00021917,2]
[316027829,1709328647263,-6899.63,0.00021917,2]
[316027830,1709328647272,-500.0,0.00021917,2]
[316027831,1709328647281,-719.44,0.00021917,2]
[316027832,1709328647291,-1105.01,0.00021917,2]
[316027833,1709328647300,-500.0,0.00021917,2]
[316027834,1709328647310,-500.0,0.00021917,2]
[316027835,1709328647319,-500.0,0.00021917,2]
[316027836,1709328647328,-500.0,0.00021917,2]
[316027837,1709328647337,-944.86,0.00021917,2]
[316027838,1709328647347,-1265.75,0.00021918,3]
[316027839,1709328647356,-381.0,0.00021921,2]
[316027840,1709328647367,-152.0,0.00021921,2]
[316027841,1709328647376,-173.28596281,0.00021926,2]
[316027842,1709328647386,-500.0,0.00021926,2]
[316027843,1709328647398,-460.02165406,0.00021926,2]
[316027844,1709328647409,-628.18982786,0.00021926,2]
[316027845,1709328647418,-322.01093783,0.00021926,2]
[316027846,1709328647431,-500.0,0.00021926,2]
[316027847,1709328647447,-565.05701678,0.00021926,2]
[316027848,1709328647457,-8689.56825557,0.00021936,2]
[316027849,1709328647466,-475.39,0.00021954,2]
[316027850,1709328647475,-4357.48530198,0.00021956,2]
[316027851,1709328647485,-1000.0,0.00021975,2]
[316027852,1709328647495,-10000.0,0.00022,2]
[316027853,1709328647504,-437.33609476,0.00022,2]
[316027854,1709328647513,-23287.68502554,0.00022,2]
[316027855,1709328647522,-173.33422019,0.00022,2]
[316027856,1709328647531,-1296.0,0.00022,2]
[316027857,1709328647541,-1296.0,0.00022,2]
[316027858,1709328647550,-11302.89437177,0.00022,2]
[316027859,1709328647559,-990.0,0.00022,4]
[316027860,1709328647569,-20054.01,0.00022,2]
[316027861,1709328647578,-69682.28,0.00022,2]
[316027862,1709328647587,-250.0,0.00022,2]
[316027863,1709328647596,-250.0,0.00022,2]
[316027864,1709328647605,-250.0,0.00022,2]
[316027865,1709328647614,-250.0,0.00022,2]
[316027866,1709328647623,-250.0,0.00022,2]
[316027867,1709328647632,-250.0,0.00022,2]
[316027868,1709328647641,-452.5,0.00022,2]
[316027869,1709328647650,-3233.18,0.00022,2]
[316027870,1709328647659,-1243.07666482,0.00022024,5]
[316027871,1709328647669,-757.99,0.00022024,2]
[316027872,1709328647679,-757.99,0.00022024,2]
[316027873,1709328647688,-757.99,0.00022024,2]
[316027874,1709328647697,-757.99,0.00022024,2]
[316027875,1709328647706,-758.01,0.00022024,2]
[316027876,1709328647716,-384.50877493,0.00022024,2]
[316027877,1709328647725,-150.0,0.00022024,2]
[316027878,1709328647734,-329249.28408129,0.00022025,2]
[316027879,1709328647744,-523.51272957,0.00022025,2]
[316027880,1709328647753,-222.66123822,0.00022025,2]
[316027881,1709328647763,-500.0,0.00022026,2]
[316027882,1709328647772,-729.13903339,0.00022027,2]
[316027883,1709328647782,-500.0,0.00022027,2]
[316027884,1709328647792,-500.0,0.00022027,2]
[316027885,1709328647801,-528.19440831,0.00022027,2]
[316027886,1709328647811,-500.0,0.00022027,2]
[316027887,1709328647820,-500.0,0.00022027,2]
[316027888,1709328647830,-500.0,0.00022027,2]
[316027889,1709328647839,-500.0,0.00022027,2]
[316027890,1709328647849,-500.0,0.00022027,2]
[316027891,1709328647859,-500.0,0.00022027,2]
[316027892,1709328647869,-500.0,0.00022027,2]
[316027893,1709328647878,-500.0,0.00022027,2]
[316027894,1709328647887,-500.0,0.00022027,2]
[316027895,1709328647896,-500.0,0.00022027,2]
[316027896,1709328647906,-401.79353411,0.00022027,2]
[316027897,1709328647916,-500.0,0.00022027,2]
[316027898,1709328647925,-500.0,0.00022027,2]
[316027899,1709328647934,-500.0,0.00022027,2]
[316027900,1709328647944,-500.0,0.00022027,2]
[316027901,1709328647953,-500.0,0.00022027,2]
[316027902,1709328647963,-500.0,0.00022027,2]
[316027903,1709328647972,-500.0,0.00022027,2]
[316027904,1709328647982,-422.40871873,0.00022027,2]
[316027905,1709328647991,-500.0,0.00022027,2]
[316027906,1709328648002,-500.0,0.00022027,2]
[316027907,1709328648011,-500.0,0.00022027,2]
[316027908,1709328648021,-500.0,0.00022027,2]
[316027909,1709328648034,-500.0,0.00022027,2]
[316027910,1709328648043,-500.0,0.00022027,2]
[316027911,1709328648053,-500.0,0.00022027,2]
[316027912,1709328648063,-500.0,0.00022027,2]
[316027913,1709328648073,-500.0,0.00022027,2]
[316027914,1709328648083,-500.0,0.00022027,2]
[316027915,1709328648092,-500.0,0.00022027,2]
[316027916,1709328648102,-500.0,0.00022027,2]
[316027917,1709328648114,-500.0,0.00022027,2]
[316027918,1709328648125,-500.0,0.00022027,2]
[316027919,1709328648135,-476.82436789,0.00022027,2]
[316027920,1709328648145,-500.0,0.00022027,2]
[316027921,1709328648154,-500.0,0.00022027,2]
[316027922,1709328648164,-500.0,0.00022027,2]
[316027923,1709328648173,-500.0,0.00022027,2]
[316027924,1709328648182,-500.0,0.00022027,2]
[316027925,1709328648191,-500.0,0.00022027,2]
[316027926,1709328648201,-538.39,0.00022027,2]
[316027927,1709328648211,-500.0,0.00022027,2]
[316027928,1709328648220,-500.0,0.00022027,2]
[316027929,1709328648230,-500.0,0.00022027,2]
[316027930,1709328648239,-500.0,0.00022027,2]
[316027931,1709328648248,-500.0,0.00022027,2]
[316027932,1709328648257,-500.0,0.00022027,2]
[316027933,1709328648266,-576.75666463,0.00022027,2]
[316027934,1709328648276,-500.0,0.00022027,2]
[316027935,1709328648285,-500.0,0.00022027,2]
[316027936,1709328648294,-500.0,0.00022027,2]
[316027937,1709328648304,-500.0,0.00022027,2]
[316027938,1709328648314,-500.0,0.00022027,2]
[316027939,1709328648323,-500.0,0.00022027,2]
[316027940,1709328648332,-500.0,0.00022027,2]
[316027941,1709328648342,-500.0,0.00022027,2]
[316027942,1709328648351,-500.0,0.00022027,2]
[316027943,1709328648360,-500.0,0.00022027,2]
[316027944,1709328648369,-500.0,0.00022027,2]
[316027945,1709328648378,-500.0,0.00022027,2]
[316027946,1709328648387,-500.0,0.00022027,2]
[316027947,1709328648396,-521.67481041,0.00022027,2]
[316027948,1709328648405,-500.0,0.00022027,2]
[316027949,1709328648415,-500.0,0.00022027,2]
[316027950,1709328648424,-500.0,0.00022027,2]
[316027951,1709328648433,-500.0,0.00022027,2]
[316027952,1709328648442,-500.0,0.00022027,2]
[316027953,1709328648451,-418.49394247,0.00022027,2]
[316027954,1709328648461,-500.0,0.00022027,2]
[316027955,1709328648470,-500.0,0.00022027,2]
[316027956,1709328648480,-317.31591799,0.00022027,2]
[316027957,1709328648489,-500.0,0.00022027,2]
[316027958,1709328648498,-500.0,0.00022027,2]
[316027959,1709328648508,-500.0,0.00022027,2]
[316027960,1709328648517,-500.0,0.00022027,2]
[316027961,1709328648526,-500.0,0.00022027,2]
[316027962,1709328648536,-500.0,0.00022027,2]
[316027963,1709328648545,-500.0,0.00022027,2]
[316027964,1709328648555,-500.0,0.00022027,2]
[316027965,1709328648565,-500.0,0.00022027,2]
[316027966,1709328648574,-529.0,0.00022027,2]
[316027967,1709328648583,-500.0,0.00022027,2]
[316027968,1709328648592,-500.0,0.00022027,2]
[316027969,1709328648602,-806.31,0.00022027,2]
[316027970,1709328648610,-500.0,0.00022027,2]
[316027971,1709328648620,-868.44,0.00022027,2]
[316027972,1709328648629,-500.0,0.00022027,2]
[316027973,1709328648638,-500.0,0.00022027,2]
[316027974,1709328648647,-546.34,0.00022027,2]
[316027975,1709328648656,-500.0,0.00022027,2]
[316027976,1709328648666,-520.71,0.00022027,2]
[316027977,1709328648675,-504.15179769,0.00022027,2]
[316027978,1709328648684,-500.0,0.00022027,2]
[316027979,1709328648693,-500.0,0.00022027,2]
[316027980,1709328648702,-500.0,0.00022027,2]
[316027981,1709328648711,-500.0,0.00022027,2]
[316027982,1709328648720,-500.0,0.00022027,2]
[316027983,1709328648729,-500.0,0.00022027,2]
[316027984,1709328648739,-500.0,0.00022027,2]
[316027985,1709328648748,-500.0,0.00022027,2]
[316027986,1709328648758,-500.0,0.00022027,2]
[316027987,1709328648767,-526.71,0.00022027,2]
[316027988,1709328648776,-500.0,0.00022027,2]
[316027989,1709328648785,-500.0,0.00022027,2]
[316027990,1709328648794,-500.0,0.00022027,2]
[316027991,1709328648803,-500.0,0.00022027,2]
[316027992,1709328648812,-500.0,0.00022027,2]
[316027993,1709328648821,-500.0,0.00022027,2]
[316027994,1709328648831,-266.90392605,0.00022027,2]
[316027995,1709328648840,-500.0,0.00022027,2]
[316027996,1709328648849,-500.0,0.00022027,2]
[316027997,1709328648859,-647.62,0.00022027,2]
[316027998,1709328648870,-500.0,0.00022027,2]
[316027999,1709328648879,-500.0,0.00022027,2]
[316028000,1709328648889,-500.0,0.00022027,2]
[316028001,1709328648898,-500.0,0.00022027,2]
[316028002,1709328648908,-500.0,0.00022027,2]
[316028003,1709328648918,-500.0,0.00022027,2]
[316028004,1709328648927,-678.21,0.00022027,2]
[316028005,1709328648937,-572.96103005,0.00022027,2]
[316028006,1709328648947,-500.0,0.00022027,2]
[316028007,1709328648956,-500.0,0.00022027,2]
[316028008,1709328648966,-500.0,0.00022027,2]
[316028009,1709328648975,-500.0,0.00022027,2]
[316028010,1709328648985,-500.0,0.00022027,2]
[316028011,1709328648994,-544.09,0.00022027,2]
[316028012,1709328649003,-500.0,0.00022027,2]
[316028013,1709328649013,-508.46,0.00022027,2]
[316028014,1709328649023,-601.8,0.00022027,2]
[316028015,1709328649033,-500.0,0.00022027,2]
[316028016,1709328649045,-500.0,0.00022027,2]
[316028017,1709328649055,-500.0,0.00022027,2]
[316028018,1709328649064,-500.0,0.00022027,2]
[316028019,1709328649074,-500.0,0.00022027,2]
[316028020,1709328649084,-500.0,0.00022027,2]
[316028021,1709328649094,-500.0,0.00022027,2]
[316028022,1709328649103,-231.9713506,0.00022027,2]
[316028023,1709328649116,-500.0,0.00022027,2]
[316028024,1709328649127,-500.0,0.00022027,2]
[316028025,1709328649136,-500.0,0.00022027,2]
[316028026,1709328649146,-500.0,0.00022027,2]
[316028027,1709328649156,-500.0,0.00022027,2]
[316028028,1709328649166,-500.0,0.00022027,2]
[316028029,1709328649176,-500.0,0.00022027,2]
[316028030,1709328649185,-500.0,0.00022027,2]
[316028031,1709328649195,-500.0,0.00022027,2]
[316028032,1709328649204,-500.0,0.00022027,2]
[316028033,1709328649214,-500.0,0.00022027,2]
[316028034,1709328649223,-500.0,0.00022027,2]
[316028035,1709328649233,-500.0,0.00022027,2]
[316028036,1709328649242,-500.0,0.00022027,2]
[316028037,1709328649252,-500.0,0.00022027,2]
[316028038,1709328649260,-500.0,0.00022027,2]
[316028039,1709328649270,-500.0,0.00022027,2]
[316028040,1709328649280,-546.96,0.00022027,2]
[316028041,1709328649290,-500.0,0.00022027,2]
[316028042,1709328649299,-555.83,0.00022027,2]
[316028043,1709328649309,-523.64,0.00022027,2]
[316028044,1709328649318,-631.39,0.00022027,2]
[316028045,1709328649328,-500.0,0.00022027,2]
[316028046,1709328649338,-500.0,0.00022027,2]
[316028047,1709328649347,-500.0,0.00022027,2]
[316028048,1709328649357,-500.0,0.00022027,2]
[316028049,1709328649366,-500.0,0.00022027,2]
[316028050,1709328649377,-500.0,0.00022027,2]
[316028051,1709328649387,-500.0,0.00022027,2]
[316028052,1709328649397,-500.0,0.00022027,2]
[316028053,1709328649407,-500.0,0.00022027,2]
[316028054,1709328649416,-500.0,0.00022027,2]
[316028055,1709328649426,-358.15233803,0.00022027,2]
[316028056,1709328649435,-500.0,0.00022027,2]
[316028057,1709328649445,-500.0,0.00022027,2]
[316028058,1709328649454,-511.43,0.00022027,2]
[316028059,1709328649464,-500.0,0.00022027,2]
[316028060,1709328649473,-500.0,0.00022027,2]
[316028061,1709328649483,-500.0,0.00022027,2]
[316028062,1709328649493,-500.0,0.00022027,2]
[316028063,1709328649502,-500.0,0.00022027,2]
[316028064,1709328649512,-500.0,0.00022027,2]
[316028065,1709328649521,-500.0,0.00022027,2]
[316028066,1709328649531,-500.0,0.00022027,2]
[316028067,1709328649541,-615.81,0.00022027,2]
[316028068,1709328649550,-500.0,0.00022027,2]
[316028069,1709328649561,-500.0,0.00022027,2]
[316028070,1709328649571,-500.0,0.00022027,2]
[316028071,1709328649580,-500.0,0.00022027,2]
[316028072,1709328649590,-500.0,0.00022027,2]
[316028073,1709328649599,-1020.84,0.00022027,2]
[316028074,1709328649609,-500.0,0.00022027,2]
[316028075,1709328649619,-786.29,0.00022027,2]
[316028076,1709328649629,-500.0,0.00022027,2]
[316028077,1709328649639,-500.0,0.00022027,2]
[316028078,1709328649648,-500.0,0.00022027,2]
[316028079,1709328649658,-500.0,0.00022027,2]
[316028080,1709328649668,-500.0,0.00022027,2]
[316028081,1709328649678,-719.0,0.00022027,2]
[316028082,1709328649688,-500.0,0.00022027,2]
[316028083,1709328649697,-649.43,0.00022027,2]
[316028084,1709328649709,-548.10498736,0.00022027,2]
[316028085,1709328649718,-500.0,0.00022027,2]
[316028086,1709328649728,-500.0,0.00022027,2]
[316028087,1709328649738,-790.2,0.00022027,2]
[316028088,1709328649748,-500.0,0.00022027,2]
[316028089,1709328649757,-997.5,0.00022027,2]
[316028090,1709328649767,-1068.72,0.00022027,2]
[316028091,1709328649777,-500.0,0.00022027,2]
[316028092,1709328649786,-1094.89,0.00022027,2]
[316028093,1709328649796,-500.0,0.00022027,2]
[316028094,1709328649805,-500.0,0.00022027,2]
[316028095,1709328649815,-500.0,0.00022027,2]
[316028096,1709328649826,-500.0,0.00022027,2]
[316028097,1709328649836,-500.0,0.00022027,2]
[316028098,1709328649845,-500.0,0.00022027,2]
[316028099,1709328649855,-1192.31,0.00022027,2]
[316028100,1709328649865,-500.0,0.00022027,2]
[316028101,1709328649877,-500.0,0.00022027,2]
[316028102,1709328649888,-594.98,0.00022027,2]
[316028103,1709328649897,-500.0,0.00022027,2]
[316028104,1709328649907,-629.6849424,0.00022027,2]
[316028105,1709328649917,-500.0,0.00022027,2]
[316028106,1709328649927,-500.0,0.00022027,2]
[316028107,1709328649937,-587.36,0.00022027,2]
[316028108,1709328649946,-1550.72,0.00022027,2]
[316028109,1709328649956,-500.0,0.00022027,2]
[316028110,1709328649966,-500.0,0.00022027,2]
[316028111,1709328649975,-500.0,0.00022027,2]
[316028112,1709328649985,-500.0,0.00022027,2]
[316028113,1709328649994,-500.0,0.00022027,2]
[316028114,1709328650004,-500.0,0.00022027,2]
[316028115,1709328650014,-500.0,0.00022027,2]
[316028116,1709328650023,-500.0,0.00022027,2]
[316028117,1709328650037,-500.0,0.00022027,2]
[316028118,1709328650046,-500.0,0.00022027,2]
[316028119,1709328650056,-500.0,0.00022027,2]
[316028120,1709328650066,-500.0,0.00022027,2]
[316028121,1709328650076,-961.47,0.00022027,2]
[316028122,1709328650086,-500.0,0.00022027,2]
[316028123,1709328650096,-500.0,0.00022027,2]
[316028124,1709328650107,-500.0,0.00022027,2]
[316028125,1709328650117,-500.0,0.00022027,2]
[316028126,1709328650128,-500.0,0.00022027,2]
[316028127,1709328650138,-500.0,0.00022027,2]
[316028128,1709328650148,-500.0,0.00022027,2]
[316028129,1709328650158,-521.53704744,0.00022027,2]
[316028130,1709328650168,-500.0,0.00022027,2]
[316028131,1709328650178,-500.0,0.00022027,2]
[316028132,1709328650187,-500.0,0.00022027,2]
[316028133,1709328650197,-565.65,0.00022027,2]
[316028134,1709328650207,-840.17,0.00022027,2]
[316028135,1709328650217,-500.0,0.00022027,2]
[316028136,1709328650227,-500.0,0.00022027,2]
[316028137,1709328650237,-500.0,0.00022027,2]
[316028138,1709328650246,-500.0,0.00022027,2]
[316028139,1709328650256,-711.45,0.00022027,2]
[316028140,1709328650267,-500.0,0.00022027,2]
[316028141,1709328650277,-500.0,0.00022027,2]
[316028142,1709328650287,-500.0,0.00022027,2]
[316028143,1709328650297,-500.0,0.00022027,2]
[316028144,1709328650306,-500.0,0.00022027,2]
[316028145,1709328650316,-500.0,0.00022027,2]
[316028146,1709328650325,-500.0,0.00022027,2]
[316028147,1709328650335,-500.0,0.00022027,2]
[316028148,1709328650345,-980.11,0.00022027,2]
[316028149,1709328650355,-150.0,0.00022027,2]
[316028150,1709328650365,-500.0,0.00022027,2]
[316028151,1709328650377,-500.0,0.00022027,2]
[316028152,1709328650387,-552.62343835,0.00022027,2]
[316028153,1709328650396,-879.26,0.00022027,2]
[316028154,1709328650406,-500.0,0.00022027,2]
[316028155,1709328650415,-314.52,0.00022027,2]
[316028156,1709328650425,-500.0,0.00022027,2]
[316028157,1709328650434,-500.0,0.00022027,2]
[316028158,1709328650444,-797.44,0.00022027,2]
[316028159,1709328650454,-500.0,0.00022027,2]
[316028160,1709328650463,-500.0,0.00022027,2]
[316028161,1709328650473,-500.0,0.00022027,2]
[316028162,1709328650483,-612.35825576,0.00022027,2]
[316028163,1709328650494,-500.0,0.00022027,2]
[316028164,1709328650503,-500.0,0.00022027,2]
[316028165,1709328650513,-500.0,0.00022027,2]
[316028166,1709328650523,-500.0,0.00022027,2]
[316028167,1709328650532,-500.0,0.00022027,2]
[316028168,1709328650542,-251.43,0.00022027,2]
[316028169,1709328650552,-598.47,0.00022027,2]
[316028170,1709328650563,-500.0,0.00022027,2]
[316028171,1709328650573,-500.0,0.00022027,2]
[316028172,1709328650583,-500.0,0.00022027,2]
[316028173,1709328650594,-500.0,0.00022027,2]
[316028174,1709328650603,-500.0,0.00022027,2]
[316028175,1709328650614,-500.0,0.00022027,2]
[316028176,1709328650626,-500.0,0.00022027,2]
[316028177,1709328650636,-670.82,0.00022027,2]
[316028178,1709328650646,-500.0,0.00022027,2]
[316028179,1709328650656,-588.71,0.00022027,2]
[316028180,1709328650666,-1272.27,0.00022027,2]
[316028181,1709328650677,-500.0,0.00022027,2]
[316028182,1709328650687,-500.0,0.00022027,2]
[316028183,1709328650697,-500.0,0.00022027,2]
[316028184,1709328650708,-500.0,0.00022027,2]
[316028185,1709328650718,-678.39,0.00022027,2]
[316028186,1709328650728,-500.0,0.00022027,2]
[316028187,1709328650739,-849.53,0.00022027,2]
[316028188,1709328650749,-500.0,0.00022027,2]
[316028189,1709328650760,-500.0,0.00022027,2]
[316028190,1709328650770,-500.0,0.00022027,2]
[316028191,1709328650780,-878.99,0.00022027,2]
[316028192,1709328650790,-2036.27,0.00022027,2]
[316028193,1709328650800,-500.0,0.00022027,2]
[316028194,1709328650811,-500.0,0.00022027,2]
[316028195,1709328650821,-500.0,0.00022027,2]
[316028196,1709328650831,-500.0,0.00022027,2]
[316028197,1709328650841,-500.0,0.00022027,2]
[316028198,1709328650851,-1094.91,0.00022027,2]
[316028199,1709328650862,-500.0,0.00022027,2]
[316028200,1709328650872,-500.0,0.00022027,2]
[316028201,1709328650882,-500.0,0.00022027,2]